fUST/lending_fUST_20250210
["ID","MTS","AMOUNT","RATE_DAILY","PERIOD"]
[352531359,1739153452090,-1007.54,0.00012328,2]
[352531360,1739153452099,-500.0,0.00012328,2]
[352531361,1739153452109,-560.96,0.00012328,2]
[352531362,1739153452119,-569.61,0.00012328,2]
[352531363,1739153452128,-500.0,0.00012328,2]
[352531364,1739153452138,-500.0,0.00012328,2]
[352531365,1739153452147,-1210.0,0.00012328,2]
[352531366,1739153452157,-500.0,0.00012328,2]
[352531367,1739153452167,-500.0,0.00012328,2]
[352531368,1739153452176,-500.0,0.00012328,2]
[352531369,1739153452185,-505.36771673,0.0001245,2]
[352531370,1739153452195,-410.67710563,0.00012465,2]
[352531371,1739153452205,-500.0,0.00012465,2]
[352531372,1739153452214,-500.0,0.00012465,2]
[352531373,1739153452224,-528.42,0.00012465,2]
[352531374,1739153452235,-500.0,0.00012465,2]
[352531375,1739153452244,-500.0,0.00012465,2]
[352531376,1739153452253,-590.39,0.00012465,2]
[352531377,1739153452263,-500.0,0.00012465,2]
[352531378,1739153452272,-500.0,0.00012465,2]
[352531379,1739153452282,-500.0,0.00012465,2]
[352531380,1739153452292,-939.87,0.00012465,2]
[352531381,1739153452301,-500.0,0.00012465,2]
[352531382,1739153452311,-1474.55,0.00012465,2]
[352531383,1739153452323,-2048.45,0.00012465,2]
[352531384,1739153452334,-574.99,0.00012465,2]
[352531385,1739153452344,-500.0,0.00012465,2]
[352531386,1739153452353,-500.0,0.00012465,2]
[352531387,1739153452363,-2155.17,0.00012465,2]
[352531388,1739153452373,-1902.27,0.00012465,2]
[352531389,1739153452382,-1788.34,0.00012465,2]
[352531390,1739153452392,-1069.92,0.00012465,2]
[352531391,1739153452402,-500.0,0.00012465,2]
[352531392,1739153452412,-592.99,0.00012465,2]
[352531393,1739153452421,-621.16,0.00012465,2]
[352531394,1739153452431,-676.19,0.00012465,2]
[352531395,1739153452441,-500.0,0.00012465,2]
[352531396,1739153452450,-500.0,0.00012465,2]
[352531397,1739153452460,-6646.62,0.00012465,2]
[352531398,1739153452469,-844.14,0.00012465,2]
[352531399,1739153452479,-11111.66,0.00012465,2]
[352531400,1739153452489,-677.41,0.00012465,2]
[352531401,1739153452498,-500.0,0.00012465,2]
[352531402,1739153452509,-661.95,0.00012465,2]
[352531403,1739153452519,-500.0,0.00012465,2]
[352531404,1739153452529,-500.0,0.00012465,2]
[352531405,1739153452539,-1218.13,0.00012465,2]
[352531406,1739153452548,-500.0,0.00012465,2]
[352531407,1739153452559,-500.0,0.00012465,2]
[352531408,1739153452568,-500.0,0.00012465,2]
[352531409,1739153452581,-1007.54,0.00012465,2]
[352531410,1739153452592,-500.0,0.00012465,2]
[352531411,1739153452602,-560.96,0.00012465,2]
[352531412,1739153452612,-569.61,0.00012465,2]
[352531413,1739153452621,-500.0,0.00012465,2]
[352531414,1739153452631,-642.98739141,0.00012465,2]
[352531415,1739153452641,-1210.0,0.00012465,2]
[352531416,1739153452651,-500.0,0.00012465,2]
[352531417,1739153452661,-500.0,0.00012465,2]
[352531418,1739153452670,-500.0,0.00012465,2]
[352531419,1739153452683,-1000.0,0.00012485,2]
[352531420,1739153452693,-1000.0,0.00012485,2]
[352531421,1739153452702,-1500.0,0.00012494,2]
[352531422,1739153452711,-1000.0,0.0001251,2]
[352531423,1739153452722,-1000.74367822,0.0001251,2]
[352531424,1739153452731,-1000.8912339,0.0001251,2]
[352531425,1739153452740,-500.27,0.00012602,2]
[352531426,1739153452751,-500.0,0.00012602,2]
[352531427,1739153452760,-528.42,0.00012602,2]
[352531428,1739153452771,-500.0,0.00012602,2]
[352531429,1739153452780,-500.0,0.00012602,2]
[352531430,1739153452789,-590.39,0.00012602,2]
[352531431,1739153452799,-500.0,0.00012602,2]
[352531432,1739153452809,-500.0,0.00012602,2]
[352531433,1739153452819,-500.0,0.00012602,2]
[352531434,1739153452831,-939.87,0.00012602,2]
[352531435,1739153452841,-500.0,0.00012602,2]
[352531436,1739153452851,-1474.55,0.00012602,2]
[352531437,1739153452861,-2048.45,0.00012602,2]
[352531438,1739153452871,-574.99,0.00012602,2]
[352531439,1739153452880,-500.0,0.00012602,2]
[352531440,1739153452891,-500.0,0.00012602,2]
[352531441,1739153452901,-2155.17,0.00012602,2]
[352531442,1739153452910,-1902.27,0.00012602,2]
[352531443,1739153452919,-1788.34,0.00012602,2]
[352531444,1739153452929,-1069.92,0.00012602,2]
[352531445,1739153452939,-500.0,0.00012602,2]
[352531446,1739153452949,-592.99,0.00012602,2]
[352531447,1739153452959,-621.16,0.00012602,2]
[352531448,1739153452968,-676.19,0.00012602,2]
[352531449,1739153452977,-500.0,0.00012602,2]
[352531450,1739153452987,-500.0,0.00012602,2]
[352531451,1739153452996,-6646.62,0.00012602,2]
[352531452,1739153453006,-844.14,0.00012602,2]
[352531453,1739153453015,-11111.66,0.00012602,2]
[352531454,1739153453024,-677.41,0.00012602,2]
[352531455,1739153453033,-500.0,0.00012602,2]
[352531456,1739153453043,-661.95,0.00012602,2]
[352531457,1739153453053,-500.0,0.00012602,2]
[352531458,1739153453062,-500.0,0.00012602,2]
[352531459,1739153453073,-1218.13,0.00012602,2]
[352531460,1739153453082,-500.0,0.00012602,2]
[352531461,1739153453091,-500.0,0.00012602,2]
[352531462,1739153453101,-500.0,0.00012602,2]
[352531463,1739153453111,-1007.54,0.00012602,2]
[352531464,1739153453121,-500.0,0.00012602,2]
[352531465,1739153453131,-560.96,0.00012602,2]
[352531466,1739153453141,-569.61,0.00012602,2]
[352531467,1739153453150,-500.0,0.00012602,2]
[352531468,1739153453160,-1210.0,0.00012602,2]
[352531469,1739153453171,-500.0,0.00012602,2]
[352531470,1739153453182,-500.0,0.00012602,2]
[352531471,1739153453192,-500.0,0.00012602,2]
[352531472,1739153453202,-500.0,0.00012739,2]
[352531473,1739153453211,-528.42,0.00012739,2]
[352531474,1739153453221,-500.0,0.00012739,2]
[352531475,1739153453231,-500.0,0.00012739,2]
[352531476,1739153453241,-590.39,0.00012739,2]
[352531477,1739153453250,-500.0,0.00012739,2]
[352531478,1739153453260,-500.0,0.00012739,2]
[352531479,1739153453270,-500.0,0.00012739,2]
[352531480,1739153453280,-939.87,0.00012739,2]
[352531481,1739153453289,-500.0,0.00012739,2]
[352531482,1739153453299,-1474.55,0.00012739,2]
[352531483,1739153453308,-2048.45,0.00012739,2]
[352531484,1739153453318,-574.99,0.00012739,2]
[352531485,1739153453329,-500.0,0.00012739,2]
[352531486,1739153453339,-500.0,0.00012739,2]
[352531487,1739153453349,-2155.17,0.00012739,2]
[352531488,1739153453358,-1902.27,0.00012739,2]
[352531489,1739153453369,-1788.34,0.00012739,2]
[352531490,1739153453379,-1069.92,0.00012739,2]
[352531491,1739153453389,-500.0,0.00012739,2]
[352531492,1739153453398,-592.99,0.00012739,2]
[352531493,1739153453408,-621.16,0.00012739,2]
[352531494,1739153453417,-676.19,0.00012739,2]
[352531495,1739153453427,-500.0,0.00012739,2]
[352531496,1739153453436,-500.0,0.00012739,2]
[352531497,1739153453446,-6646.62,0.00012739,2]
[352531498,1739153453455,-844.14,0.00012739,2]
[352531499,1739153453465,-11111.66,0.00012739,2]
[352531500,1739153453475,-677.41,0.00012739,2]
[352531501,1739153453484,-295.52502056,0.00012739,2]
[352531502,1739153453493,-661.95,0.00012739,2]
[352531503,1739153453503,-500.0,0.00012739,2]
[352531504,1739153453512,-500.0,0.00012739,2]
[352531505,1739153453522,-1218.13,0.00012739,2]
[352531506,1739153453532,-500.0,0.00012739,2]
[352531507,1739153453541,-500.0,0.00012739,2]
[352531508,1739153453550,-500.0,0.00012739,2]
[352531509,1739153453560,-1007.54,0.00012739,2]
[352531510,1739153453570,-500.0,0.00012739,2]
[352531511,1739153453580,-560.96,0.00012739,2]
[352531512,1739153453591,-569.61,0.00012739,2]
[352531513,1739153453600,-500.0,0.00012739,2]
[352531514,1739153453610,-1210.0,0.00012739,2]
[352531515,1739153453619,-500.0,0.00012739,2]
[352531516,1739153453629,-500.0,0.00012739,2]
[352531517,1739153453639,-500.0,0.00012739,2]
[352531518,1739153453648,-2000.0,0.00012768,2]
[352531519,1739153453658,-336.80660605,0.00012876,2]
[352531520,1739153453669,-528.42,0.00012876,2]
[352531521,1739153453679,-500.0,0.00012876,2]
[352531522,1739153453689,-500.0,0.00012876,2]
[352531523,1739153453699,-590.39,0.00012876,2]
[352531524,1739153453708,-500.0,0.00012876,2]
[352531525,1739153453718,-500.0,0.00012876,2]
[352531526,1739153453728,-422.95203277,0.00012876,2]
[352531527,1739153453811,-939.87,0.00012876,2]
[352531528,1739153453824,-299.96634308,0.00012876,2]
[352531529,1739153453835,-1474.55,0.00012876,2]
[352531530,1739153453846,-2048.45,0.00012876,2]
[352531531,1739153453855,-574.99,0.00012876,2]
[352531532,1739153453866,-500.0,0.00012876,2]
[352531533,1739153453875,-500.0,0.00012876,2]
[352531534,1739153453885,-2155.17,0.00012876,2]
[352531535,1739153453895,-1902.27,0.00012876,2]
[352531536,1739153453905,-1788.34,0.00012876,2]
[352531537,1739153453915,-1069.92,0.00012876,2]
[352531538,1739153453925,-500.0,0.00012876,2]
[352531539,1739153453935,-592.99,0.00012876,2]
[352531540,1739153453944,-621.16,0.00012876,2]
[352531541,1739153453953,-676.19,0.00012876,2]
[352531542,1739153453962,-500.0,0.00012876,2]
[352531543,1739153453972,-500.0,0.00012876,2]
[352531544,1739153453981,-6646.62,0.00012876,2]
[352531545,1739153453991,-844.14,0.00012876,2]
[352531546,1739153454000,-11111.66,0.00012876,2]
[352531547,1739153454010,-677.41,0.00012876,2]
[352531548,1739153454019,-661.95,0.00012876,2]
[352531549,1739153454029,-500.0,0.00012876,2]
[352531550,1739153454038,-500.0,0.00012876,2]
[352531551,1739153454047,-1218.13,0.00012876,2]
[352531552,1739153454059,-500.0,0.00012876,2]
[352531553,1739153454069,-500.0,0.00012876,2]
[352531554,1739153454080,-500.0,0.00012876,2]
[352531555,1739153454089,-1007.54,0.00012876,2]
[352531556,1739153454099,-638.8,0.00012876,2]
[352531557,1739153454109,-560.96,0.00012876,2]
[352531558,1739153454118,-569.61,0.00012876,2]
[352531559,1739153454128,-500.0,0.00012876,2]
[352531560,1739153454138,-1210.0,0.00012876,2]
[352531561,1739153454147,-360.75,0.00012876,2]
[352531562,1739153454158,-500.0,0.00012876,2]
[352531563,1739153454168,-500.0,0.00012876,2]
[352531564,1739153454178,-2252.40227406,0.000129,2]
[352531565,1739153454188,-2252.40227405,0.000129,2]
[352531566,1739153454198,-2252.40227405,0.000129,2]
[352531567,1739153454208,-7438.69753278,0.00013,2]
[352531568,1739153454218,-528.42,0.00013013,2]
[352531569,1739153454228,-500.0,0.00013013,2]
[352531570,1739153454238,-500.0,0.00013013,2]
[352531571,1739153454247,-590.39,0.00013013,2]
[352531572,1739153454257,-500.0,0.00013013,2]
[352531573,1739153454266,-500.0,0.00013013,2]
[352531574,1739153454277,-939.87,0.00013013,2]
[352531575,1739153454287,-1474.55,0.00013013,2]
[352531576,1739153454296,-2048.45,0.00013013,2]
[352531577,1739153454306,-574.99,0.00013013,2]
[352531578,1739153454316,-500.0,0.00013013,2]
[352531579,1739153454327,-500.0,0.00013013,2]
[352531580,1739153454336,-2155.17,0.00013013,2]
[352531581,1739153454345,-1902.27,0.00013013,2]
[352531582,1739153454355,-1788.34,0.00013013,2]
[352531583,1739153454365,-1069.92,0.00013013,2]
[352531584,1739153454375,-500.0,0.00013013,2]
[352531585,1739153454385,-592.99,0.00013013,2]
[352531586,1739153454394,-621.16,0.00013013,2]
[352531587,1739153454403,-676.19,0.00013013,2]
[352531588,1739153454413,-563.45718387,0.00013013,2]
[352531589,1739153454423,-377.11715191,0.00013013,2]
[352531590,1739153454432,-6646.62,0.00013013,2]
[352531591,1739153454442,-844.14,0.00013013,2]
[352531592,1739153454451,-11111.66,0.00013013,2]
[352531593,1739153454460,-677.41,0.00013013,2]
[352531594,1739153454470,-661.95,0.00013013,2]
[352531595,1739153454479,-422.90802193,0.00013013,2]
[352531596,1739153454488,-500.0,0.00013013,2]
[352531597,1739153454497,-1218.13,0.00013013,2]
[352531598,1739153454507,-500.0,0.00013013,2]
[352531599,1739153454517,-500.0,0.00013013,2]
[352531600,1739153454526,-500.0,0.00013013,2]
[352531601,1739153454535,-1007.54,0.00013013,2]
[352531602,1739153454545,-560.96,0.00013013,2]
[352531603,1739153454555,-569.61,0.00013013,2]
[352531604,1739153454564,-500.0,0.00013013,2]
[352531605,1739153454576,-1210.0,0.00013013,2]
[352531606,1739153454586,-500.0,0.00013013,2]
[352531607,1739153454596,-187.19052958,0.00013013,2]
[352531608,1739153454605,-803.99661224,0.00013042,2]
[352531609,1739153454615,-440.03400432,0.0001305,2]
[352531610,1739153454624,-528.42,0.0001315,2]
[352531611,1739153454634,-500.0,0.0001315,2]
[352531612,1739153454643,-521.88756094,0.0001315,2]
[352531613,1739153454652,-590.39,0.0001315,2]
[352531614,1739153454661,-494.46167448,0.0001315,2]
[352531615,1739153454671,-522.1745936,0.0001315,2]
[352531616,1739153454685,-939.87,0.0001315,2]
[352531617,1739153454695,-1474.55,0.0001315,2]
[352531618,1739153454704,-2048.45,0.0001315,2]
[352531619,1739153454714,-574.99,0.0001315,2]
[352531620,1739153454725,-500.0,0.0001315,2]
[352531621,1739153454735,-500.0,0.0001315,2]
[352531622,1739153454744,-2155.17,0.0001315,2]
[352531623,1739153454755,-1902.27,0.0001315,2]
[352531624,1739153454764,-1788.34,0.0001315,2]
[352531625,1739153454775,-1069.92,0.0001315,2]
[352531626,1739153454784,-500.0,0.0001315,2]
[352531627,1739153454794,-592.99,0.0001315,2]
[352531628,1739153454803,-621.16,0.0001315,2]
[352531629,1739153454812,-676.19,0.0001315,2]
[352531630,1739153454822,-6646.62,0.0001315,2]
[352531631,1739153454831,-844.14,0.0001315,2]
[352531632,1739153454840,-11111.66,0.0001315,2]
[352531633,1739153454849,-677.41,0.0001315,2]
[352531634,1739153454858,-661.95,0.0001315,2]
[352531635,1739153454867,-579.34427062,0.0001315,2]
[352531636,1739153454877,-1218.13,0.0001315,2]
[352531637,1739153454886,-500.0,0.0001315,2]
[352531638,1739153454896,-500.0,0.0001315,2]
[352531639,1739153454905,-287.8,0.0001315,2]
[352531640,1739153454915,-1007.54,0.0001315,2]
[352531641,1739153454925,-560.96,0.0001315,2]
[352531642,1739153454935,-569.61,0.0001315,2]
[352531643,1739153454945,-500.0,0.0001315,2]
[352531644,1739153454955,-1210.0,0.0001315,2]
[352531645,1739153454965,-500.0,0.0001315,2]
[352531646,1739153454974,-528.42,0.00013287,2]
[352531647,1739153454983,-476.97602959,0.00013287,2]
[352531648,1739153454993,-590.39,0.00013287,2]
[352531649,1739153455002,-939.87,0.00013287,2]
[352531650,1739153455012,-1474.55,0.00013287,2]
[352531651,1739153455022,-2048.45,0.00013287,2]
[352531652,1739153455032,-574.99,0.00013287,2]
[352531653,1739153455042,-500.0,0.00013287,2]
[352531654,1739153455051,-500.0,0.00013287,2]
[352531655,1739153455060,-2155.17,0.00013287,2]
[352531656,1739153455070,-1902.27,0.00013287,2]
[352531657,1739153455082,-1788.34,0.00013287,2]
[352531658,1739153455092,-1069.92,0.00013287,2]
[352531659,1739153455102,-500.0,0.00013287,2]
[352531660,1739153455111,-592.99,0.00013287,2]
[352531661,1739153455121,-621.16,0.00013287,2]
[352531662,1739153455131,-676.19,0.00013287,2]
[352531663,1739153455140,-6646.62,0.00013287,2]
[352531664,1739153455150,-844.14,0.00013287,2]
[352531665,1739153455160,-11111.66,0.00013287,2]
[352531666,1739153455169,-677.41,0.00013287,2]
[352531667,1739153455179,-661.95,0.00013287,2]
[352531668,1739153455189,-1218.13,0.00013287,2]
[352531669,1739153455199,-500.0,0.00013287,2]
[352531670,1739153455209,-500.0,0.00013287,2]
[352531671,1739153455218,-1007.54,0.00013287,2]
[352531672,1739153455228,-560.96,0.00013287,2]
[352531673,1739153455237,-569.61,0.00013287,2]
[352531674,1739153455247,-490.5691153,0.00013287,2]
[352531675,1739153455256,-1210.0,0.00013287,2]
[352531676,1739153455267,-500.0,0.00013287,2]
[352531677,1739153455276,-151.01526129,0.00013368,2]
[352531678,1739153455286,-700.0,0.00013385,2]
[352531679,1739153455295,-528.42,0.00013424,2]
[352531680,1739153455304,-590.39,0.00013424,2]
[352531681,1739153455314,-939.87,0.00013424,2]
[352531682,1739153455323,-1474.55,0.00013424,2]
[352531683,1739153455333,-2048.45,0.00013424,2]
[352531684,1739153455342,-574.99,0.00013424,2]
[352531685,1739153455352,-500.0,0.00013424,2]
[352531686,1739153455362,-346.10129277,0.00013424,2]
[352531687,1739153455372,-2155.17,0.00013424,2]
[352531688,1739153455451,-1902.27,0.00013424,2]
[352531689,1739153455461,-1788.34,0.00013424,2]
[352531690,1739153455471,-1069.92,0.00013424,2]
[352531691,1739153455482,-500.0,0.00013424,2]
[352531692,1739153455492,-592.99,0.00013424,2]
[352531693,1739153455502,-621.16,0.00013424,2]
[352531694,1739153455511,-676.19,0.00013424,2]
[352531695,1739153455520,-6646.62,0.00013424,2]
[352531696,1739153455532,-844.14,0.00013424,2]
[352531697,1739153455543,-11111.66,0.00013424,2]
[352531698,1739153455553,-677.41,0.00013424,2]
[352531699,1739153455563,-661.95,0.00013424,2]
[352531700,1739153455574,-1218.13,0.00013424,2]
[352531701,1739153455584,-500.0,0.00013424,2]
[352531702,1739153455593,-500.0,0.00013424,2]
[352531703,1739153455603,-1007.54,0.00013424,2]
[352531704,1739153455613,-560.96,0.00013424,2]
[352531705,1739153455622,-569.61,0.00013424,2]
[352531706,1739153455631,-1210.0,0.00013424,2]
[352531707,1739153455641,-288.9,0.00013424,2]
[352531708,1739153455650,-397.34595654,0.00013487,2]
[352531709,1739153455660,-1000.56880759,0.00013487,2]
[352531710,1739153455672,-440.03400424,0.00013499,2]
[352531711,1739153455684,-1002.14316149,0.00013512,2]
[352531712,1739153455693,-2252.40227405,0.00013529,2]
[352531713,1739153455703,-23892.24353361,0.0001355,2]
[352531714,1739153455714,-528.42,0.00013561,2]
[352531715,1739153455723,-590.39,0.00013561,2]
[352531716,1739153455733,-939.87,0.00013561,2]
[352531717,1739153455743,-1474.55,0.00013561,2]
[352531718,1739153455753,-2048.45,0.00013561,2]
[352531719,1739153455763,-574.99,0.00013561,2]
[352531720,1739153455773,-500.0,0.00013561,2]
[352531721,1739153455783,-2155.17,0.00013561,2]
[352531722,1739153455793,-1902.27,0.00013561,2]
[352531723,1739153455803,-1788.34,0.00013561,2]
[352531724,1739153455812,-1069.92,0.00013561,2]
[352531725,1739153455822,-500.0,0.00013561,2]
[352531726,1739153455832,-592.99,0.00013561,2]
[352531727,1739153455842,-621.16,0.00013561,2]
[352531728,1739153455852,-676.19,0.00013561,2]
[352531729,1739153455862,-6646.62,0.00013561,2]
[352531730,1739153455872,-696.24364479,0.00013561,2]
[352531731,1739153455897,-500.0,0.00011506,2]
[352531732,1739153455906,-147.89635521,0.00013561,2]
[352531733,1739153455916,-1868.73091554,0.00013561,2]
[352531734,1739153456033,-5210.67,0.00011369,2]
[352531735,1739153456043,-4542.11381582,0.00011506,2]
[352531736,1739153456173,-500.0,0.00011506,2]
[352531740,1739154338111,-400.0,0.00010685,2]
[352531741,1739154338132,-173.64218596,0.00010951,2]
[352531742,1739154338155,-300.0,0.00010956,2]
[352531743,1739154338178,-369.56039104,0.00010957,2]
[352531744,1739154437105,-300.0,0.00010956,2]
[352531745,1739154437129,-74.0927677,0.00010957,2]
[352531746,1739154445105,-56.34684126,0.00010957,2]
[352531747,1739154445126,-348.94316642,0.00010957,2]
[352531748,1739154445149,-500.0,0.00010957,2]
[352531749,1739154445172,-55.7287695,0.00010957,2]
[352531803,1739154632168,-164.1660698,0.00010858,2]
[352531804,1739154632178,-300.0,0.00010956,2]
[352531805,1739154632188,-444.2712305,0.00010957,2]
[352531806,1739154632198,-500.0,0.00010957,2]
[352531807,1739154632207,-500.0,0.00010957,2]
[352531808,1739154632216,-500.0,0.00010957,2]
[352531809,1739154632225,-500.0,0.00010957,2]
[352531810,1739154632234,-500.0,0.00010957,2]
[352531811,1739154632243,-500.0,0.00010957,2]
[352531812,1739154632253,-500.0,0.00010957,2]
[352531813,1739154632262,-500.0,0.00010957,2]
[352531814,1739154632271,-500.0,0.00010957,2]
[352531815,1739154632280,-500.0,0.00010957,2]
[352531816,1739154632289,-500.0,0.00010957,2]
[352531817,1739154632299,-500.0,0.00010957,2]
[352531818,1739154632309,-500.0,0.00010957,2]
[352531819,1739154632319,-500.0,0.00010957,2]
[352531820,1739154632328,-500.0,0.00010957,2]
[352531821,1739154632338,-500.0,0.00010957,2]
[352531822,1739154632347,-500.0,0.00010957,2]
[352531823,1739154632357,-500.0,0.00010957,2]
[352531824,1739154632367,-500.0,0.00010957,2]
[352531825,1739154632376,-500.0,0.00010957,2]
[352531826,1739154632385,-500.0,0.00010957,2]
[352531827,1739154632394,-500.0,0.00010957,2]
[352531828,1739154632404,-500.0,0.00010957,2]
[352531829,1739154632413,-500.0,0.00010957,2]
[352531830,1739154632422,-500.0,0.00010957,2]
[352531831,1739154632431,-500.0,0.00010957,2]
[352531832,1739154632440,-443.91366634,0.00010957,2]
[352531833,1739154632449,-500.0,0.00010957,2]
[352531834,1739154632459,-227.40003694,0.00010958,2]
[352531835,1739154632468,-547.45567875,0.00010958,2]
[352531836,1739154632478,-503.41256753,0.00010958,2]
[352531837,1739154632487,-501.3062286,0.00010958,2]
[352531838,1739154632496,-503.38386109,0.00010958,2]
[352531839,1739154632506,-501.30971949,0.00010958,2]
[352531840,1739154632515,-501.27627951,0.00010958,2]
[352531841,1739154632525,-14.77607154,0.00010958,2]
[352531849,1739154638286,-487.87607951,0.00010958,2]
[352531850,1739154638295,-213.92391206,0.00010958,2]
[352531851,1739154638392,-288.91950146,0.00010958,2]
[352531852,1739154638401,-314.09987303,0.00010958,2]
[352531853,1739154638410,-503.2900274,0.00010958,2]
[352531854,1739154638420,-501.29928733,0.00010958,2]
[352531855,1739154638429,-502.66210417,0.00010958,2]
[352531856,1739154638438,-502.41769985,0.00010958,2]
[352531857,1739154638447,-390.02770232,0.00010958,2]
[352531858,1739154638456,-602.80661556,0.00010958,2]
[352531859,1739154638466,-503.24106695,0.00010958,2]
[352531860,1739154638475,-604.17936521,0.00010958,2]
[352531861,1739154638484,-500.12369152,0.00010958,2]
[352531862,1739154638493,-502.28959799,0.00010958,2]
[352531863,1739154638503,-501.70906812,0.00010958,2]
[352531864,1739154638512,-501.3743381,0.00010958,2]
[352531865,1739154638521,-500.0,0.00010958,2]
[352531866,1739154638531,-500.0,0.00010958,2]
[352531867,1739154638541,-500.0,0.00010958,2]
[352531868,1739154638551,-435.03157338,0.00010958,2]
[352531869,1739154638560,-500.0,0.00010958,2]
[352531870,1739154638573,-502.7097939,0.00010958,2]
[352531871,1739154638583,-500.0,0.00010958,2]
[352531872,1739154638592,-500.0,0.00010958,2]
[352531873,1739154638601,-500.0,0.00010958,2]
[352531874,1739154638610,-500.32806321,0.00010958,2]
[352531875,1739154638620,-500.0,0.00010958,2]
[352531876,1739154638630,-501.46095678,0.00010958,2]
[352531877,1739154638639,-500.0,0.00010958,2]
[352531878,1739154638648,-188.21539291,0.00010958,2]
[352531879,1739154638658,-500.0,0.00010958,2]
[352531880,1739154638667,-500.4093049,0.00010958,2]
[352531881,1739154638675,-500.0,0.00010958,2]
[352531882,1739154638684,-500.0,0.00010958,2]
[352531883,1739154638693,-500.0,0.00010958,2]
[352531884,1739154638702,-502.3868348,0.00010958,2]
[352531885,1739154638711,-501.03863892,0.00010958,2]
[352531886,1739154638720,-500.0,0.00010958,2]
[352531887,1739154638729,-500.0,0.00010958,2]
[352531888,1739154638738,-500.0,0.00010958,2]
[352531889,1739154638747,-500.0,0.00010958,2]
[352531890,1739154638756,-500.0,0.00010958,2]
[352531891,1739154638766,-500.0,0.00010958,2]
[352531892,1739154638776,-525.62890895,0.00010958,2]
[352531893,1739154638785,-500.0,0.00010958,2]
[352531894,1739154638794,-502.58477312,0.00010958,2]
[352531895,1739154638803,-500.0,0.00010958,2]
[352531896,1739154638812,-500.0,0.00010958,2]
[352531897,1739154638824,-500.47737141,0.00010958,2]
[352531898,1739154638833,-500.0,0.00010958,2]
[352531899,1739154638842,-500.0,0.00010958,2]
[352531900,1739154638851,-500.0,0.00010958,2]
[352531901,1739154638860,-607.83636468,0.00010958,2]
[352531902,1739154638869,-501.12317126,0.00010958,2]
[352531903,1739154638878,-501.2433741,0.00010958,2]
[352531904,1739154638887,-503.07666868,0.00010958,2]
[352531905,1739154638897,-500.0,0.00010958,2]
[352531906,1739154638906,-500.0,0.00010958,2]
[352531907,1739154638915,-498.0,0.00010958,2]
[352531908,1739154638924,-500.0,0.00010958,2]
[352531909,1739154638933,-502.87562283,0.00010958,2]
[352531910,1739154638942,-517.08754388,0.00010958,2]
[352531911,1739154638952,-500.0,0.00010958,2]
[352531912,1739154638961,-503.87395455,0.00010958,2]
[352531913,1739154638970,-502.73380169,0.00010958,2]
[352531914,1739154638979,-500.0,0.00010958,2]
[352531915,1739154638988,-519.32634292,0.00010958,2]
[352531916,1739154638997,-500.0,0.00010958,2]
[352531917,1739154639006,-501.98366187,0.00010958,2]
[352531918,1739154639016,-500.86206713,0.00010958,2]
[352531919,1739154639026,-500.0,0.00010958,2]
[352531920,1739154639035,-503.40881337,0.00010958,2]
[352531921,1739154639047,-500.0,0.00010958,2]